[Event "EICC 2025"]
[Site "Eforie-Nord"]
[Date "2025.03.17"]
[Round "3.27"]
[White "Smolik, Jachym"]
[Black "Lupulescu, Constantin"]
[Result "1/2-1/2"]
[Annotator "TA"]
[ECO "D35"]
[WhiteElo "2308"]
[BlackElo "2596"]
[PlyCount "78"]
[EventDate "2025.03.14"]
[EventType "swiss"]
[EventCountry "ROU"]
[SourceTitle "playchess.com"]
[Source "ChessBase"]
[SourceQuality "1"]
[TimeControl "40/5400+30:1800+30"]

{[%evp 9,78,7,10,5,7,4,14,4,25,-6,-4,-21,0,-20,-30,-24,-24,-29,-7,-35,-29,-35,-33,-29,-32,-43,-40,-39,-42,-41,-45,-45,-29,-43,-46,-39,-39,-39,-30,-25,-19,-33,-39,-43,-31,-43,-31,-40,-31,-31,-31,-33,-31,-31,-31,-31,0,-31,0,-31,-31,-31,-31,-31,0,-4,0,-31,-31,-11,0]} 1. d4 {[%emt 0:00:02]} d5 {[%emt 0:00:16]} 2. c4 {[%emt 0:00:03]} e6 {[%emt 1:31:14]} 3. Nc3 {[%emt 0:00:05]} Nf6 {[%emt 0:00:00]} 4. cxd5 {[%emt 0:00:05]} exd5 {[%emt 0:00:00]} 5. Bf4 {[%emt 0:00:08]} Bd6 {[%emt 0:00:00]} 6. Bxd6 {[%emt 0:00:12] D35: Queen's Gambit Declined: Exchange Variation.} Qxd6 {[%emt 0:00:00]} 7. e3 {[%emt 0:00:06]} Bf5 {[%emt 0:00:00]} 8. Qf3 {[%emt 0:00:09]} g6 {[%emt 0:00:00]} 9. Qg3 {[%emt 0:11:41]} Qxg3 {[%emt 0:00:00]} 10. hxg3 {[%emt 0:01:20]} h5 {[%emt 0:00:00]} 11. f3 {[%emt 0:05:01][%cal Og3g4]} O-O {[%emt 0:00:00]} 12. Nge2 $146 {[%emt 0:07:19]} (12. Kf2 c6 13. Nge2 a5 14. Nf4 Nbd7 15. Be2 Nb6 16. Bd3 Bxd3 17. Nxd3 Rfe8 18. b3 {0-1 Sarana,A (2662)-Predke,A (2684) Titled Tuesday intern op 25th Oct Late blitz 2022 (8)}) 12... c6 {[%emt 0:05:00]} 13. Nf4 {[%emt 0:05:17]} Nbd7 {[%emt 0:00:00]} 14. Bd3 {[%emt 0:05:59]} Bxd3 {[%emt 0:00:00]} 15. Nxd3 {[%emt 0:00:01]} Ne8 {[%emt 0:00:00][%cal Bf6e8,Be8d6,Bd6f5][%mdl 32]} 16. Kf2 {[%emt 0:11:18]} Nd6 {[%emt 0:02:00]} 17. Na4 {[%emt 0:07:50]} Rfe8 {[%emt 0:00:00]} 18. Rhe1 {[%emt 0:42:54]} Re7 {[%emt 0:01:00]} 19. Re2 {[%emt 0:00:00]} Rae8 {[%emt 0:00:30]} 20. Nac5 {[%emt 0:01:00]} Nxc5 {[%emt 0:00:30]} 21. Nxc5 {[%emt 0:00:30]} Nf5 {[%emt 0:00:30][%cal Of5d4]} 22. Rae1 {[%emt 0:00:00]} f6 {[%emt 0:00:00]} 23. a4 {[%emt 0:01:00]} a5 {[%emt 0:01:00]} 24. Nb3 {[%emt 0:00:00]} b6 {[%emt 0:00:30]} 25. Na1 {[%emt 0:00:00]} Kf7 {[%emt 0:00:00]} 26. Nc2 {[%emt 0:01:30]} Ke6 {[%emt 0:00:00]} 27. Rd2 {[%emt 0:00:30]} Kd7 {[%emt 0:01:30]} 28. Rd3 {[%emt 0:00:30]} Kc7 {[%emt 0:00:00]} 29. Rc3 {[%emt 0:00:00]} Kb7 {[%emt 0:01:00]} 30. Rc1 {[%emt 0:00:00]} Re6 31. Rb1 {[%emt 0:01:30]} Ra8 {[%emt 0:01:00]} 32. Rc1 {[%emt 0:00:00]} Rae8 {[%emt 0:00:00]} 33. Rb1 {[%emt 0:00:00]} Nd6 {[%emt 0:00:00]} 34. b3 {[%emt 0:00:00]} Ra8 {[%emt 0:00:00]} 35. Rc1 {[%emt 0:00:00]} Nf5 {[%emt 0:00:00]} 36. Rb1 {[%emt 0:00:00]} Nd6 {[%emt 0:00:00]} 37. Rc1 {[%emt 0:00:00]} Nf5 {[%emt 0:00:53]} 38. Rb1 {[%emt 0:00:00]} Ne7 {[%emt 0:00:44]} 39. Ne1 {[%emt 0:00:00]} Nf5 {[%emt 0:01:09] Weighted Error Value: White=0.05 (flawless) /Black=0.06 (flawless)   Inaccurate:     	White=3     	Black=2      OK:         	White=13    	Black=16     Best:        	White=1     	---} 1/2-1/2

[Event "EICC 2025"]
[Site "Eforie-Nord"]
[Date "2025.03.17"]
[Round "3.28"]
[White "Svane, Frederik"]
[Black "Royal, Shreyas"]
[Result "1-0"]
[Annotator "TA"]
[ECO "C78"]
[WhiteElo "2654"]
[BlackElo "2491"]
[PlyCount "85"]
[EventDate "2025.03.14"]
[EventType "swiss"]
[EventCountry "ROU"]
[SourceTitle "playchess.com"]
[Source "ChessBase"]
[SourceQuality "1"]
[TimeControl "40/5400+30:1800+30"]

{[%evp 17,85,43,47,23,26,18,20,14,13,13,6,20,29,19,34,35,23,35,45,50,57,49,55,47,79,76,84,60,59,59,79,66,90,95,97,95,94,87,79,86,91,91,91,30,36,31,40,64,41,22,56,56,75,65,116,114,114,107,107,111,122,116,342,343,322,305,632,629,600,445]} 1. e4 {[%emt 0:00:27]} e5 {[%emt 0:00:08]} 2. Nf3 {[%emt 0:00:06]} Nc6 {[%emt 0:00:05]} 3. Bb5 {[%emt 0:00:05]} a6 {[%emt 0:00:05]} 4. Ba4 {[%emt 0:00:06]} Nf6 {[%emt 0:00:07]} 5. O-O {[%emt 0:00:06]} b5 {[%emt 0:00:23]} 6. Bb3 {[%emt 0:00:09]} Bc5 {[%emt 0:00:05]} 7. a4 {[%emt 0:00:31]} Rb8 {[%emt 0:00:07]} 8. c3 {[%emt 0:00:20]} d6 {[%emt 0:00:08]} 9. d4 {[%emt 0:00:07]} Bb6 {[%emt 0:00:06]} 10. Be3 {[%emt 0:01:01][%cal Oa4a5] C78: Ruy Lopez: Archangelsk and Möller Defences.} Bg4 {[%emt 0:02:41]} 11. axb5 {[%emt 0:01:16]} axb5 {[%emt 0:00:12]} 12. Nbd2 {[%emt 0:00:10] The position is equal.} O-O {[%emt 0:03:20]} 13. h3 {[%emt 0:00:06]} Bh5 {[%emt 0:07:49]} 14. Qe1 {[%emt 0:00:10]} Re8 $146 {[%emt 0:01:41]} (14... Bxf3 15. Nxf3 Re8 16. dxe5 Nxe5 17. Nxe5 Rxe5 18. Bxb6 Rxb6 19. Bc2 Re8 20. Qe2 b4 {1-0 Petrov,M (2526)-Pavlidis,A (2376) Thessaloniki op 2010 (8)}) 15. dxe5 {[%emt 0:00:44]} Nxe5 {[%emt 0:02:29]} 16. Nxe5 {[%emt 0:00:51]} dxe5 {[%emt 0:00:07]} 17. f3 {[%emt 0:12:03]} Nd7 {[%emt 0:13:03]} 18. Qf2 {[%emt 0:16:36]} Bxe3 {[%emt 0:18:21]} 19. Qxe3 {[%emt 0:00:02]} Qe7 {[%emt 0:00:14]} 20. Ra7 {[%emt 0:09:20]} Qd6 {[%emt 0:03:23]} 21. Rd1 {[%emt 0:13:38]} Nc5 {[%emt 0:01:21]} 22. Bc2 {[%emt 0:11:54] and Nb3 would now be decisive} (22. Bd5 {seems wilder.} Qb6 23. Rda1 c6 24. b4) 22... Qb6 23. Rda1 {[%emt 0:32:12]} Red8 {[%emt 0:46:05][%cal Od8d2] ...Rxd2! would now be deadly.} 24. Nf1 {[%emt 0:00:00]} b4 {[%cal Bb5b4,Bb4b3][%mdl 32]} 25. R7a5 {[%emt 0:01:00]} b3 {[%emt 0:00:00]} 26. Bb1 {[%emt 0:00:00]} (26. Rxc5 bxc2 27. Rd5 f5 (27... Qxb2 28. Rxd8+ Rxd8 29. Qd2 $11) (27... Qxe3+ 28. Nxe3 Rxd5 29. exd5 $14) 28. Qxb6 (28. Rxe5 $2 Rd1 $19) 28... cxb6) 26... Nd7 {[%emt 0:00:00]} 27. Bd3 {[%emt 0:00:00]} f6 {[%emt 0:00:00]} 28. Bc4+ {[%emt 0:00:00]} Bf7 {[%emt 0:00:00]} 29. Bxf7+ {[%emt 0:00:00]} (29. Qxb6 {simplifies} Nxb6 30. Bxf7+ Kxf7 31. Rc5) 29... Kxf7 {[%emt 0:00:00]} 30. Kh2 {[%emt 0:00:00]} ({White should play} 30. Qxb6 $16 Nxb6 31. Rc5) 30... Qxe3 $1 $11 {[%emt 0:00:00]} 31. Nxe3 {[%emt 0:00:00]} Nf8 $1 {[%emt 0:00:00]} 32. Ra7 {[%emt 0:00:00]} Rd7 {[%emt 0:00:00]} 33. R1a6 {[%emt 0:00:00]} Ne6 {[%emt 0:00:00]} 34. Nd5 $36 {[%emt 0:00:00][%mdl 2048] White is more active.} Nc5 {[%emt 0:00:00]} 35. Rc6 {[%emt 0:00:00]} Nd3 {[%emt 0:00:00] [#]} ({Black should play} 35... Rb7 $1 $14 36. Rxb7 Nxb7) 36. Nb6 $1 $16 {[%emt 0:00:00][%mdl 512]} Re7 {[%emt 0:00:00]} 37. Nc4 {[%emt 0:00:00]} (37. Raxc7 Nxb2 38. Nd7 Rb5 $19) 37... Kg6 {[%emt 0:00:00]} 38. Rcxc7 {[%emt 0:00:00]} Rxc7 {[%emt 0:00:00]} 39. Rxc7 {[%emt 0:00:00]} f5 $2 {[%emt 0:00:00] This costs Black the game.} (39... h5 $16 {was necessary.} 40. Re7 h4) 40. exf5+ $18 Kxf5 {[%emt 0:00:00]} 41. Rd7 {[%emt 0:36:49]} e4 {[%emt 0:21:07]} (41... Nf4 42. Rxg7 h5) 42. fxe4+ {[%emt 0:00:05]} Kxe4 {[%emt 0:00:35]} 43. Rd4+ {[%emt 0:00:04] Weighted Error Value: White=0.05 (flawless) /Black=0.23 (precise)   Loses game:     	---       	Black=1      Mistake:       	White=1     	Black=2      Inaccurate:     	---       	Black=1      OK:         	White=17    	Black=11     Best:        	White=2     	Black=1      Strong:       	---       	Black=2      Brilliant:      	White=1     	---} 1-0

[Event "EICC 2025"]
[Site "Eforie-Nord"]
[Date "2025.03.17"]
[Round "3.28"]
[White "Engel, Luis"]
[Black "Suleymanli, Suleyman"]
[Result "1/2-1/2"]
[Annotator "RC"]
[ECO "E01"]
[WhiteElo "2555"]
[BlackElo "2305"]
[PlyCount "149"]
[EventDate "2025.03.14"]
[EventType "swiss"]
[EventCountry "ROU"]
[SourceTitle "playchess.com"]
[Source "ChessBase"]
[SourceQuality "1"]
[TimeControl "40/5400+30:1800+30"]

1. c4 {[%emt 0:00:02]} e6 {[%emt 0:01:00]} 2. g3 {[%emt 0:00:05]} d5 {[%emt 0:00:07]} 3. Bg2 {[%emt 0:00:05]} Nf6 {[%emt 0:00:12]} 4. d4 {[%emt 0:00:06]} Bb4+ {[%emt 0:01:18]} 5. Bd2 {[%emt 0:00:24]} Bd6 {[%emt 0:00:07]} 6. Nf3 {[%emt 0:01:18]} c6 {[%emt 0:00:24]} 7. Qc2 {[%emt 0:01:24]} Nbd7 {[%emt 0:00:08]} 8. O-O {[%emt 0:05:10]} O-O {[%emt 0:00:12]} 9. Rd1 {[%emt 0:04:03]} Ne4 {[%emt 0:00:15]} 10. Bc3 {[%emt 0:10:58]} f5 {[%emt 0:03:14]} 11. Nbd2 {[%emt 0:00:05]} Qf6 {[%emt 0:13:38]} 12. b4 {[%emt 0:04:26]} Qh6 {[%emt 0:15:54]} 13. Ne5 {[%emt 0:13:06]} a5 {[%emt 0:13:59]} 14. Nxe4 {[%emt 0:14:42]} fxe4 {[%emt 0:00:54]} 15. b5 {[%emt 0:02:30]} cxb5 {[%emt 0:25:22]} 16. cxb5 {[%emt 0:12:34]} Nxe5 {[%emt 0:01:25]} 17. dxe5 {[%emt 0:00:04]} Bc5 {[%emt 0:00:29]} 18. Bd4 {[%emt 0:01:05]} Bxd4 {[%emt 0:00:23]} 19. Rxd4 {[%emt 0:00:03]} Qh5 {[%emt 0:08:36]} 20. Rad1 {[%emt 0:05:06]} Bd7 {[%emt 0:02:48]} 21. a4 {[%emt 0:02:54]} Be8 {[%emt 0:03:17]} 22. Qc7 {[%emt 0:00:37]} Qxe2 {[%emt 0:01:47]} 23. R4d2 {[%emt 0:00:05]} Qg4 {[%emt 0:00:44]} 24. Qxb7 {[%emt 0:00:53]} Bh5 {[%emt 0:00:02]} 25. Rc1 {[%emt 0:02:28]} Qg5 {[%emt 0:03:22]} 26. Rdc2 {[%emt 0:00:11]} Qxe5 {[%emt 0:00:18]} 27. Qc7 {[%emt 0:02:27]} Qd4 {[%emt 0:01:49]} 28. b6 {[%emt 0:00:39]} e3 {[%emt 0:00:29]} 29. b7 {[%emt 0:01:48]} exf2+ {[%emt 0:00:07]} 30. Kh1 {[%emt 0:00:04]} Rae8 {[%emt 0:01:40]} 31. Qc5 {[%emt 0:01:30]} Qxc5 {[%emt 0:00:53]} 32. Rxc5 {[%emt 0:00:05]} Rb8 {[%emt 0:00:01]} 33. Rc7 {[%emt 0:00:36]} h6 {[%emt 0:01:00]} 34. h4 {[%emt 0:01:49]} Be2 {[%emt 0:00:14]} 35. Bf1 {[%emt 0:01:24]} Bxf1 {[%emt 0:00:17]} 36. Rxf1 {[%emt 0:00:01]} Kh7 {[%emt 0:00:27]} 37. Kg2 {[%emt 0:00:16]} h5 {[%emt 0:01:02]} 38. Re7 {[%emt 0:01:32]} Kg6 {[%emt 0:00:55]} 39. Rxe6+ {[%emt 0:00:41]} Rf6 {[%emt 0:00:34]} 40. Rxf6+ {[%emt 0:00:26]} Kxf6 {[%emt 0:00:04]} 41. Rb1 {[%emt 0:31:15]} Ke5 {[%emt 0:03:50]} 42. Kxf2 {[%emt 0:00:00]} Kd4 {[%emt 0:01:24]} 43. Rb5 {[%emt 0:00:00]} Ke4 {[%emt 0:02:30]} 44. Ke2 {[%emt 0:00:00]} Kd4 {[%emt 0:00:23]} 45. Kd2 {[%emt 0:00:00]} Kc4 {[%emt 0:00:40]} 46. Ke3 {[%emt 0:00:00]} g6 {[%emt 0:01:14]} 47. Rb1 {[%emt 0:00:00]} Kc3 {[%emt 0:04:29]} 48. Rc1+ {[%emt 0:00:00]} Kb2 {[%emt 0:01:14]} 49. Rc7 {[%emt 0:00:00]} Ka3 {[%emt 0:01:56]} 50. Kd4 {[%emt 0:00:00]} Kxa4 {[%emt 0:00:15]} 51. Kc5 {[%emt 0:00:00]} d4 {[%emt 0:07:25]} 52. Kc4 {[%emt 0:00:00]} Ka3 {[%emt 0:00:26]} 53. Rc5 {[%emt 0:02:48]} Rxb7 {[%emt 0:02:35]} 54. Rxa5+ {[%emt 0:00:04]} Kb2 {[%emt 0:00:04]} 55. Kxd4 {[%emt 0:00:03]} Rb4+ {[%emt 0:03:51]} 56. Ke3 {[%emt 0:01:08]} Rb3+ {[%emt 0:01:29]} 57. Kf2 {[%emt 0:00:55]} Kc3 {[%emt 0:02:04]} 58. Ra6 {[%emt 0:00:55]} Kd4 {[%emt 0:00:35]} 59. Rxg6 {[%emt 0:00:05]} Ke4 {[%emt 0:00:29]} 60. Kg2 {[%emt 0:03:14]} Rb2+ {[%emt 0:00:39]} 61. Kh3 {[%emt 0:00:05]} Rb5 {[%emt 0:00:06]} 62. Rg8 {[%emt 0:01:50]} Ra5 {[%emt 0:00:09]} 63. Rf8 {[%emt 0:00:36]} Rf5 {[%emt 0:00:38]} 64. Re8+ {[%emt 0:00:32]} Re5 {[%emt 0:00:19]} 65. Rh8 {[%emt 0:00:37]} Ra5 {[%emt 0:00:14]} 66. Rg8 {[%emt 0:00:57]} Rb5 {[%emt 0:00:06]} 67. Rf8 {[%emt 0:01:58]} Rf5 {[%emt 0:00:05]} 68. Ra8 {[%emt 0:01:17]} Rb5 {[%emt 0:00:14]} 69. Ra4+ {[%emt 0:00:32]} Kf5 {[%emt 0:00:07]} 70. Ra6 {[%emt 0:00:04]} Ke4 {[%emt 0:00:13]} 71. Rg6 {[%emt 0:02:05]} Ra5 {[%emt 0:00:05]} 72. Rf6 {[%emt 0:00:22]} Rf5 {[%emt 0:00:03]} 73. Rg6 {[%emt 0:00:59]} Ra5 {[%emt 0:00:06]} 74. g4 {[%emt 0:01:01]} Ra3+ {[%emt 0:00:06]} 75. Kg2 {[%emt 0:00:04]} 1/2-1/2

[Event "EICC 2025"]
[Site "Eforie-Nord"]
[Date "2025.03.17"]
[Round "3.29"]
[White "Martirosyan, Haik M."]
[Black "Ben Ari, Yannay"]
[Result "1-0"]
[Annotator "TA"]
[ECO "B52"]
[WhiteElo "2652"]
[BlackElo "2474"]
[PlyCount "99"]
[EventDate "2025.03.14"]
[EventType "swiss"]
[EventCountry "ROU"]
[SourceTitle "playchess.com"]
[Source "ChessBase"]
[SourceQuality "1"]
[TimeControl "40/5400+30:1800+30"]

{[%evp 12,99,25,17,35,22,16,12,49,2,11,10,12,4,23,0,16,0,0,0,0,0,-5,0,0,0,0,-8,0,-14,0,0,0,0,3,9,8,-12,0,0,33,21,25,24,29,29,63,31,69,71,72,58,68,73,82,27,52,33,64,75,83,89,93,115,90,83,252,243,252,246,237,247,298,298,639,632,715,705,1665,1672,1481,1516,3078,4635,2078,5189,5812,5228,2458,2310]} 1. e4 {[%emt 0:00:21]} c5 {[%emt 0:00:15]} 2. Nf3 {[%emt 0:00:18]} d6 {[%emt 0:01:34]} 3. Bb5+ {[%emt 0:00:24]} Bd7 {[%emt 0:02:43]} 4. Bxd7+ {[%emt 0:00:31]} Nxd7 {[%emt 0:00:07]} 5. O-O {[%emt 0:01:31]} Ngf6 {[%emt 0:00:51]} 6. Qe2 {[%emt 0:02:51]} e6 {[%emt 0:01:29]} 7. c3 {[%emt 0:02:13]} d5 {[%emt 0:11:15] B52: Sicilian: Moscow Variation with 3...Bd7.} 8. e5 {[%emt 0:06:32]} Ng8 {[%emt 0:00:30][%cal Bf6g8,Bg8e7,Be7c6,Bc6b4][%mdl 32]} 9. d4 {[%emt 0:00:27]} Ne7 {[%emt 0:13:05] The position is equal.} 10. Rd1 $146 {[%emt 0:02:33]} (10. dxc5 $1 $14 Nxc5 11. Rd1) (10. dxc5 Nxc5 11. Bg5 Qd7 12. Nbd2 h6 13. Be3 Nf5 14. Rfd1 Na4 15. Rab1 Be7 16. c4 O-O 17. Nf1 Rfd8 18. cxd5 {½-½ Fernandez Garcia,J (2443)-Ubilava,E (2556) Elgoibar 09th 1999 (9)}) 10... cxd4 $11 {[%emt 0:03:29]} 11. cxd4 {[%emt 0:00:33]} Nc6 {[%emt 0:00:10]} 12. Ng5 {[%emt 0:11:28]} Be7 {[%emt 0:02:53]} 13. Qg4 {[%emt 0:04:30]} h5 {[%emt 0:08:39]} 14. Qg3 {[%emt 0:02:56]} Qb6 {[%emt 0:02:12]} 15. Qd3 {[%emt 0:15:37]} Nb4 {[%emt 0:05:23]} 16. Qe2 {[%emt 0:01:20]} Qa6 {[%emt 0:10:23]} 17. Qd2 {[%emt 0:03:10]} Bxg5 {[%emt 0:08:32]} 18. Qxb4 {[%emt 0:00:33]} Be7 {[%emt 0:03:05]} 19. Qb3 {[%emt 0:00:42]} Nf8 {[%emt 0:03:27]} 20. Nc3 {[%emt 0:09:14]} Ng6 {[%emt 0:00:51]} 21. g3 {[%emt 0:01:56]} h4 {[%emt 0:03:43]} 22. Be3 {[%emt 0:02:05]} O-O-O {[%emt 0:04:00][%cal Ba8d8,Bd8c8,Bc8c2][%mdl 32]} 23. a4 {[%emt 0:06:44]} Kb8 $1 {[%emt 0:00:59]} 24. Qb5 {[%emt 0:00:04]} Qxb5 {[%emt 0:04:19]} (24... Qc6 {keeps more tension.} 25. Rdc1 Rc8 26. Kg2 a6) 25. axb5 {[%emt 0:00:40]} b6 {[%emt 0:00:38]} 26. Ne2 {[%emt 0:01:59]} Rc8 {[%emt 0:00:45]} 27. Nc1 {[%emt 0:01:01]} Rc2 {[%emt 0:01:22]} 28. Nd3 {[%emt 0:00:11]} Rhc8 {[%emt 0:01:04]} 29. Kg2 {[%emt 0:01:40]} R8c7 {[%emt 0:01:27]} 30. Bd2 {[%emt 0:04:21]} R2c4 {[%emt 0:02:29]} 31. Bc3 {[%emt 0:00:05]} a5 {[%emt 0:01:10]} 32. bxa6 {[%emt 0:00:50][%csl Oa6] White has a strong passed pawn} Ka7 {[%emt 0:00:01]} 33. Nc1 {[%emt 0:03:56]} (33. f4 $16) 33... Nf8 {[%emt 0:00:37]} 34. Rd3 $36 {[%emt 0:01:43][%cal Bd1d3,Bd3f3,Bf3g3,Bg3g8][%mdl 2080] White has the initiative.} b5 {[%emt 0:00:41][%cal Bb6b5,Bb5a4][%mdl 32]} 35. Rf3 {[%emt 0:01:33]} f6 {[%emt 0:01:23]} 36. exf6 {[%emt 0:01:00]} (36. gxh4 Ng6 37. Kh1 Nxh4 $17) 36... gxf6 {[%emt 0:01:27] [#]} 37. Nd3 $1 {[%emt 0:00:12]} ({Don't play} 37. gxh4 $6 Ng6 38. Kh3 Rc8 $11 (38... b4 39. Bd2 $14)) 37... hxg3 {[%emt 0:00:52]} 38. Rxg3 {[%emt 0:00:43]} Ra4 $2 {[%emt 0:00:38] Prevents Ba5. Loses the game.} (38... Bd6 $16 {might work better.}) 39. Rxa4 $18 {[%emt 0:04:36]} bxa4 {[%emt 0:00:01] [#]} 40. Bb4 {[%emt 0:00:01]} Bxb4 41. Nxb4 {[%emt 0:30:01][%mdl 4096] Endgame KRN-KRN. White is a pawn up.} Kb6 {[%emt 0:13:19]} 42. Rg8 {[%emt 0:00:00]} Nh7 {[%emt 0:04:45]} (42... Nd7 43. Rg7 Nf8 (43... Kb5 $2 44. Nd3 $18) 44. Rxc7 Kxc7) 43. h4 {[%emt 0:00:00] White is clearly winning.} f5 {[%emt 0:03:19]} 44. Re8 {[%emt 0:00:00]} Nf6 {[%emt 0:02:18]} 45. Rxe6+ {[%emt 0:00:00]} Kb5 {[%emt 0:00:03]} 46. Rxf6 {[%emt 0:00:00]} Kxb4 {[%emt 0:00:03]} 47. Rb6+ {[%emt 0:00:00]} Kc4 {[%emt 0:00:36]} 48. Rb7 {[%emt 0:00:00]} Rc8 {[%emt 0:00:16]} 49. a7 {[%emt 0:00:00] White threatens Rb8 and mate.} Ra8 {[%emt 0:00:04]} 50. h5 {[%emt 0:00:00] Weighted Error Value: White=0.06 (flawless) /Black=0.50  Loses game:     	---       	Black=1      Mistake:       	White=2     	Black=1      Inaccurate:     	White=1     	Black=5      OK:         	White=13    	Black=11     Best:        	White=4     	Black=1      Strong:       	White=1     	Black=1} 1-0

[Event "EICC 2025"]
[Site "Eforie-Nord"]
[Date "2025.03.17"]
[Round "3.29"]
[White "Vagman, Roy"]
[Black "Paichadze, Luka"]
[Result "1-0"]
[Annotator "RC"]
[ECO "B17"]
[WhiteElo "2300"]
[BlackElo "2532"]
[PlyCount "101"]
[EventDate "2025.03.14"]
[EventType "swiss"]
[EventCountry "ROU"]
[SourceTitle "playchess.com"]
[Source "ChessBase"]
[SourceQuality "1"]
[TimeControl "40/5400+30:1800+30"]

1. e4 {[%emt 0:00:03]} c6 {[%emt 0:00:17]} 2. d4 {[%emt 0:00:07]} d5 {[%emt 0:00:05]} 3. Nc3 {[%emt 0:00:06]} dxe4 {[%emt 0:00:05]} 4. Nxe4 {[%emt 0:00:05]} Nd7 {[%emt 0:00:03]} 5. Bd3 {[%emt 0:01:41]} Ngf6 {[%emt 0:00:21]} 6. Ng5 {[%emt 0:00:23]} g6 {[%emt 0:13:23]} 7. N1f3 {[%emt 0:01:24]} Bg7 {[%emt 0:03:59]} 8. O-O {[%emt 0:21:36]} O-O {[%emt 0:00:54]} 9. Qe2 {[%emt 0:10:09]} h6 {[%emt 0:09:36]} 10. Nxf7 {[%emt 0:17:49]} Rxf7 {[%emt 0:04:23]} 11. Bxg6 {[%emt 0:00:41]} Rf8 {[%emt 0:04:19]} 12. c4 {[%emt 0:03:50]} e5 {[%emt 0:08:33]} 13. dxe5 {[%emt 0:04:09]} Ng4 {[%emt 0:03:16]} 14. e6 {[%emt 0:02:32]} Nde5 {[%emt 0:04:02]} 15. Nxe5 {[%emt 0:05:09]} Nxe5 {[%emt 0:00:14]} 16. Bf7+ {[%emt 0:01:35]} Nxf7 {[%emt 0:10:42]} 17. e7 {[%emt 0:00:13]} Qd6 {[%emt 0:03:59]} 18. exf8=Q+ {[%emt 0:03:53]} Qxf8 {[%emt 0:02:47]} 19. Bf4 {[%emt 0:03:37]} Bf5 {[%emt 0:00:12]} 20. Rfe1 {[%emt 0:01:44]} Qb4 {[%emt 0:02:02]} 21. Qh5 {[%emt 0:06:26]} Bh7 {[%emt 0:00:13]} 22. Re3 {[%emt 0:06:05]} Qxc4 {[%emt 0:00:21]} 23. Bg3 {[%emt 0:00:41]} Bxb2 {[%emt 0:06:37]} 24. Rae1 {[%emt 0:00:21]} Bf6 {[%emt 0:01:44]} 25. Re6 {[%emt 0:04:24]} Kg7 {[%emt 0:05:12]} 26. Rxf6 {[%emt 0:03:28]} Kxf6 {[%emt 0:00:14]} 27. Be5+ {[%emt 0:00:14]} Ke7 {[%emt 0:05:52]} 28. Bg7+ {[%emt 0:00:01]} Kd6 {[%emt 0:04:17]} 29. Be5+ {[%emt 0:01:21]} Kd7 {[%emt 0:01:51]} 30. Qh3+ {[%emt 0:01:43]} Qe6 {[%emt 0:02:21]} 31. Rd1+ {[%emt 0:00:00]} Ke7 {[%emt 0:00:03]} 32. Qa3+ {[%emt 0:00:00]} Ke8 {[%emt 0:00:22]} 33. Bg7 {[%emt 0:00:20]} Qe7 {[%emt 0:00:50]} 34. Qc3 {[%emt 0:00:03]} Nd6 {[%emt 0:01:55]} 35. Bxh6 {[%emt 0:01:24]} Rd8 {[%emt 0:00:01]} 36. f3 {[%emt 0:00:36]} Kd7 {[%emt 0:02:19]} 37. Bf4 {[%emt 0:00:11]} Kc7 {[%emt 0:00:43]} 38. Qa5+ {[%emt 0:00:16]} Kc8 {[%emt 0:00:33]} 39. Bg5 {[%emt 0:00:18]} Qc7 {[%emt 0:00:43]} 40. Qxc7+ {[%emt 0:00:10]} Kxc7 {[%emt 0:00:03]} 41. Bxd8+ {[%emt 0:30:05]} Kd7 {[%emt 0:30:03]} 42. Bg5 {[%emt 0:00:31]} Ke6 {[%emt 0:00:06]} 43. Bf4 {[%emt 0:00:39]} Nb5 {[%emt 0:00:14]} 44. g4 {[%emt 0:01:46]} Nc3 {[%emt 0:00:08]} 45. Rd6+ {[%emt 0:00:00]} Ke7 {[%emt 0:00:00]} 46. Rh6 {[%emt 0:00:00]} Bb1 {[%emt 0:00:00]} 47. Be5 {[%emt 0:00:00]} Nxa2 {[%emt 0:00:00]} 48. f4 {[%emt 0:00:00]} Nc1 {[%emt 0:00:00]} 49. f5 {[%emt 0:00:00]} Nd3 {[%emt 0:00:00]} 50. Rh7+ {[%emt 0:00:00]} Ke8 {[%emt 0:00:00]} 51. Bd6 {[%emt 0:00:00]} 1-0